Cogmind - Beta 13 @@@ ROGUE MODE // 2024.07.21 @ 00:11:36 Player: jagoly Result: Destroyed by 8R-AWN with 8R-AWN's Boregun Performance ------------- Evolutions (1) 500 Regions Visited (5) 1000 Robots Destroyed (43) 215 Value Destroyed (1043) 1043 Prototype IDs (1) 20 Alien Tech Used (0) 0 Bonus (0) 0 TOTAL SCORE: 2778 Bonus ------- None Cogmind --------- Core Integrity 0/400 Matter 237/300 Energy 100/100 System Corruption 2% Temperature Cool (0) Movement Treading (240) Ox1 Location -9/Exiles Parts ------- > --- POWER (1) -------- (None) > --- PROPULSION (3) --- Light Treads > --- UTILITY (3) ------ Improved Heat Sink Large Storage Unit > --- WEAPON (2) ------- Heavy Hammer > --- INVENTORY (15) --- Improved Ion Engine Reinforced Ion Engine Sensor Array Signal Interpreter Light Armor Plating Shield Generator Hacking Suite Spread Laser Spread Laser Improved Medium Laser Improved Medium Laser Improved Medium Laser Mini Grenade Launcher Peak State ------------ > --- POWER ------------ Improved Ion Engine > --- PROPULSION ------- Light Treads Light Treads Light Treads > --- UTILITY ---------- Improved Heat Sink Large Storage Unit Light Armor Plating > --- WEAPON ----------- Spread Laser Spread Laser > --- INVENTORY -------- Improved Ion Engine Reinforced Ion Engine Light Treads Sensor Array Signal Interpreter Light Armor Plating Shield Generator Hacking Suite Spread Laser Spread Laser Improved Medium Laser Improved Medium Laser Improved Medium Laser Mini Grenade Launcher Heavy Hammer [Rating: 17] Favorites ----------- Power Improved Ion Engine Engine Improved Ion Engine Propulsion Light Treads Treads Light Treads Leg Aluminum Leg Utility Large Storage Unit Device Heat Sink Storage Large Storage Unit Processor Transport Network Coupler Protection Light Armor Plating Weapon Assault Rifle Energy Gun Spread Laser Energy Cannon Beam Cannon Ballistic Gun Assault Rifle Launcher Mini Grenade Launcher Impact Weapon Heavy Hammer Build | -11 -10 -10 -9 -9 -9 ------- Run | Yrd Mat Min Mat Min Exi Slots Evolved 2 | . . . 2 . . Power . | . . . . . . Propulsion 1 | . . . 1 . . Utility 1 | . . . 1 . . Weapon . | . . . . . . Parts Attached 61 | 6 15 . 33 2 5 Power 7 | 1 3 . 3 . . Engine 7 | 1 3 . 3 . . Core . | . . . . . . Reactor . | . . . . . . Propulsion 18 | 2 3 . 12 . 1 Treads 15 | . 2 . 12 . 1 Leg 3 | 2 1 . . . . Wheel . | . . . . . . Hover . | . . . . . . Flight . | . . . . . . Utility 16 | 1 4 . 10 1 . Device 5 | . . . 4 1 . Storage 3 | 1 1 . 1 . . Processor 2 | . 1 . 1 . . Hackware . | . . . . . . Protection 6 | . 2 . 4 . . Artifact . | . . . . . . Weapon 20 | 2 5 . 8 1 4 Energy Gun 9 | 2 1 . 3 1 2 Energy Cannon 5 | . . . 5 . . Ballistic Gun 4 | . 4 . . . . Ballistic Cannon . | . . . . . . Launcher 1 | . . . . . 1 Special Weapon . | . . . . . . Impact Weapon 1 | . . . . . 1 Slashing Weapon . | . . . . . . Piercing Weapon . | . . . . . . Special Melee Weapon . | . . . . . . Unidentified Prototypes 1 | . . . 1 . . Parts Lost 11 | . 1 . 3 . 7 Power 1 | . . . . . 1 Propulsion 6 | . 1 . 2 . 3 Utility 2 | . . . 1 . 1 Weapon 2 | . . . . . 2 Highest Loss Streak 7 | . 1 . 1 . 7 To Critical Strikes 5 | . . . . . 5 Average Slot Usage (%) 98 | . 97 100 98 100 93 Engine 12 | . 13 14 11 11 9 Treads 27 | . 20 28 31 33 29 Leg 2 | . 7 . . . . Device 6 | . . . 10 11 11 Storage 12 | . 14 14 11 11 11 Processor 1 | . 5 . . . . Protection 10 | . 6 14 10 11 9 Energy Gun 8 | . 8 . 5 22 19 Energy Cannon 5 | . . . 16 . . Ballistic Gun 10 | . 19 28 . . . Naked Turns . | . . . . . . Heaviest Build 38 | 12 28 28 38 37 37 Greatest Support 60 | 20 40 40 60 60 60 Greatest Overweight (x) 1 | 1 . . 1 . 1 Average Overweight (x) . | . . . . . . Largest Inventory Capacity 15 | 8 15 15 15 15 15 Average Capacity 14 | 7 13 15 15 15 15 Most Carried 15 | 4 13 15 15 15 15 Average Carried 12 | 2 8 14 14 15 14 Final Capacity 15 | 8 15 15 15 15 15 Final Carried 15 | 3 13 14 15 15 13 Class Distribution -------------------- 53% | Mutant 46% | Scavenger-Mutant Dominant Class ---------------- Mutant | -10/Materials Mutant | -10/Mines Scavenger-Mutant | -9/Materials Scavenger-Mutant | -9/Mines Scavenger-Mutant | -9/Exiles Resources | -11 -10 -10 -9 -9 -9 ----------- Run | Yrd Mat Min Mat Min Exi Matter Collected 1008 | 229 330 60 345 44 . Remotely . | . . . . . . Salvage Created 1538 | . 451 172 856 46 13 Parts 100 | . 39 10 49 2 . Haulers Intercepted 7 | . 2 . 5 . . Recyclers Shooed 1 | . 1 . . . . Parts Field Recycled . | . . . . . . Retrieved Matter . | . . . . . . Parts Self-Destructed . | . . . . . . Prevented . | . . . . . . Kills | -11 -10 -10 -9 -9 -9 ------- Run | Yrd Mat Min Mat Min Exi Combat Hostiles Destroyed 34 | . 8 4 12 3 7 Guns 21 | . 8 4 6 3 . Cannons 6 | . . . 6 . . AOE 7 | . . . . . 7 Classes Destroyed 11 | . 7 . 3 1 . Worker 2 | . 2 . . . . Builder 2 | . 2 . . . . Hauler 7 | . 2 . 5 . . Recycler 1 | . . . 1 . . Operator 1 | . 1 . . . . Watcher 4 | . 1 . 3 . . Swarmer 3 | . 3 . . . . Grunt 18 | . 5 4 7 2 . Duelist 1 | . . . 1 . . Sentry 4 | . . . 4 . . Assembled 8 | . . . . 1 7 Best Kill Streak 7 | . 4 2 4 2 7 Combat Bots Only 7 | . 3 2 4 2 7 Max Kills in Single Turn 4 | . 2 1 1 1 4 Gunslinging . | . . . . . . Exploded 4 | . . . . . 4 Melee . | . . . . . . Uniques/NPCs Destroyed . | . . . . . . Combat | -11 -10 -10 -9 -9 -9 -------- Run | Yrd Mat Min Mat Min Exi Hostile Shots Fired 203 | . 57 18 52 14 62 Missed 44 | . 14 4 12 6 8 Damage Taken 2350 | . 522 191 557 121 959 Core 550 | . 113 24 72 11 330 Absorbed by Shields . | . . . . . . Redirected to Shielding 14 | . 2 5 7 . . Core Remaining (%) 72 | 100 . 45 . . . Volleys Fired 153 | . 66 10 60 8 9 Largest 2 | . 2 2 2 2 2 Hottest 130 | . 80 40 130 130 130 Shots Fired 292 | . 127 20 113 17 15 Gun 199 | . 127 20 24 17 11 Cannon 89 | . . . 89 . . Launcher 4 | . . . . . 4 Special . | . . . . . . Kinetic 78 | . 58 20 . . . Thermal 210 | . 69 . 113 17 11 Explosive 4 | . . . . . 4 Electromagnetic . | . . . . . . Robot Hit Streak 19 | . 8 7 19 6 7 Robot Miss Streak 6 | . 5 1 3 5 6 Penetration Max . | . . . . . . Secondary Targets 2 | . 1 . 1 . . Max Gunslinging Chain 1 | . 1 . 1 . . Shots Hit Robots 196 | . 67 16 74 15 24 Core Hits 123 | . 28 10 49 18 18 Critical Kills . | . . . . . . Critical Parts Destroyed 2 | . 1 . . . 1 Critical Strikes 3 | . 1 . . . 2 Destroy 1 | . 1 . . . . Smash 2 | . . . . . 2 Melee Attacks 14 | . . . . . 14 Impact 14 | . . . . . 14 Slashing . | . . . . . . Piercing . | . . . . . . Sneak Attacks . | . . . . . . Combat Hostiles . | . . . . . . Follow-up Attacks . | . . . . . . Damage Inflicted 3367 | . 817 202 1253 170 925 Guns 1563 | . 817 202 323 170 51 Cannons 930 | . . . 930 . . Explosions 461 | . . . . . 461 Melee 413 | . . . . . 413 Ramming . | . . . . . . Kinetic 539 | . 337 202 . . . Thermal 1954 | . 480 . 1253 170 51 Explosive 461 | . . . . . 461 Electromagnetic . | . . . . . . Impact 413 | . . . . . 413 Slashing . | . . . . . . Piercing . | . . . . . . Highest Corruption 2 | . . . 2 2 2 Average Corruption 2 | . . . 2 2 2 Corruption Purged . | . . . . . . Corruption Blocked . | . . . . . . Effects 25 | . . . 12 7 6 Message Errors 5 | . . . 2 2 1 Matter Fused 7 | . . . 4 2 1 Heat Flow Errors 4 | . . . 3 1 . Energy Discharges 3 | . . . 2 . 1 Data Loss (minor) 3 | . . . . 1 2 Data Loss (major) 1 | . . . 1 . . Misfires 2 | . . . . 1 1 Overload Shots . | . . . . . . Overflow Damage 112 | . . . 14 . 98 Projectiles 14 | . . . 14 . . Explosions 50 | . . . . . 50 Melee 48 | . . . . . 48 Knockbacks 2 | . . . . . 2 Impact 2 | . . . . . 2 Kinetic . | . . . . . . Secondary . | . . . . . . Self-Inflicted Damage 73 | . . . . . 73 Shots 2 | . . . . . 2 Rammed . | . . . . . . Targets Rammed . | . . . . . . Kicked . | . . . . . . Crushed . | . . . . . . Highest Temperature 349 | . 349 11 301 291 90 Average Temperature 92 | . 114 5 81 114 36 Received Heat Transfer 632 | . 246 102 219 45 20 Effects 1 | . 1 . . . . Interference 1 | . 1 . . . . Siege Activations . | . . . . . . Robots Corrupted . | . . . . . . Combat Hostiles . | . . . . . . Parts Fried . | . . . . . . Impact Corruptions 3 | . . . . . 3 Robots Melted . | . . . . . . Combat Hostiles . | . . . . . . Parts Melted 2 | . . . 2 . . Heat Transferred 3756 | . 1100 . 2371 220 65 Parts Sabotaged . | . . . . . . Parts Stolen . | . . . . . . Parts Stripped . | . . . . . . Power Chain Reactions . | . . . . . . Alert | -11 -10 -10 -9 -9 -9 ------- Run | Yrd Mat Min Mat Min Exi Peak Influence 199 | . 199 142 186 78 . Initial 28 | . . 22 . 28 . Average 59 | . 44 81 80 24 . Maximum Alert Level . | . . . . . . Low Security (%) 100 | 100 100 100 100 100 . Level 1 . | . . . . . . Level 2 . | . . . . . . Level 3 . | . . . . . . Level 4 . | . . . . . . Level 5 . | . . . . . . High Security . | . . . . . . Max Security . | . . . . . . Squads Dispatched 5 | . 4 . 1 . . Investigation 2 | . 2 . . . . Extermination . | . . . . . . Reinforcement 3 | . 2 . 1 . . Assault . | . . . . . . Garrison . | . . . . . . Intercept . | . . . . . . Searches Triggered . | . . . . . . Construction Impeded . | . . . . . . Haulers Reinforced . | . . . . . . Active Scanning Responses . | . . . . . . Cargo Convoy Interrupts . | . . . . . . Stealth | -11 -10 -10 -9 -9 -9 --------- Run | Yrd Mat Min Mat Min Exi Distress Signals 2 | . . . 1 1 . Communications Jammed . | . . . . . . Distress Signals . | . . . . . . Times Spotted 54 | . 22 4 16 3 9 Peak Tracking Total 10 | . 5 2 3 2 10 Tactical Retreats 4 | . 2 . 1 . 1 Traps | -11 -10 -10 -9 -9 -9 ------- Run | Yrd Mat Min Mat Min Exi Traps Triggered 7 | . 2 . 5 . . Indirectly . | . . . . . . Trap Hack Attempts . | . . . . . . Triggered . | . . . . . . Disarmed . | . . . . . . Reprogrammed . | . . . . . . Reused . | . . . . . . Traps Extracted . | . . . . . . Installed . | . . . . . . Triggered . | . . . . . . Machines | -11 -10 -10 -9 -9 -9 ---------- Run | Yrd Mat Min Mat Min Exi Machines Disabled 4 | . . . 1 . 3 Max in Single Turn 1 | . . . 1 . 1 Machines Repaired . | . . . . . . Machines Dismantled . | . . . . . . Machines Sabotaged . | . . . . . . Overloaded Fab Kills . | . . . . . . Hacking | -11 -10 -10 -9 -9 -9 --------- Run | Yrd Mat Min Mat Min Exi Machines Accessed 8 | . 5 1 2 . . Terminals 7 | . 4 1 2 . . Fabricators . | . . . . . . Repair Stations . | . . . . . . Recycling Units 1 | . 1 . . . . Scanalyzers . | . . . . . . Garrison Access . | . . . . . . Total Hacks 18 | . 10 2 6 . . Successful 7 | . 3 2 2 . . Failed 11 | . 7 . 4 . . Catastrophic 2 | . 2 . . . . Database Lockouts . | . . . . . . Manual 8 | . 4 . 4 . . Terminals 16 | . 8 2 6 . . Fabricators . | . . . . . . Repair Stations . | . . . . . . Recycling Units 2 | . 2 . . . . Scanalyzers . | . . . . . . Garrison Access . | . . . . . . Terminal Hacks 6 | . 2 2 2 . . Branch Access Points 2 | . 1 . 1 . . Unreport Threat 1 | . . . 1 . . Dispatch Records 1 | . . 1 . . . Hauler Manifests 1 | . 1 . . . . Zone Layout 1 | . . 1 . . . Fabricator Hacks . | . . . . . . Repair Station Hacks . | . . . . . . Recycling Unit Hacks 1 | . 1 . . . . Retrieve Components 1 | . 1 . . . . Scanalyzer . | . . . . . . Garrison Access Hacks . | . . . . . . Unauthorized Hacks . | . . . . . . Terminals . | . . . . . . Fabricators . | . . . . . . Repair Stations . | . . . . . . Recycling Units . | . . . . . . Scanalyzers . | . . . . . . Garrison Access . | . . . . . . Data Cores Recovered . | . . . . . . Used . | . . . . . . Hacking Detections 7 | . 5 . 2 . . Full Trace Events 1 | . 1 . . . . Feedback Events . | . . . . . . Feedback Blocked . | . . . . . . Robot Schematics Acquired . | . . . . . . Robots Built . | . . . . . . Authchips . | . . . . . . Time . | . . . . . . Total Robot Build Rating . | . . . . . . Part Schematics Acquired . | . . . . . . Parts Built . | . . . . . . Authchips . | . . . . . . Time . | . . . . . . Total Part Build Rating . | . . . . . . Parts Repaired . | . . . . . . Time . | . . . . . . Parts Recycled . | . . . . . . Recycled Matter . | . . . . . . Retrieved Matter . | . . . . . . Retrieved Components 10 | . 10 . . . . Parts Scanalyzed . | . . . . . . Part Schematics Acquired . | . . . . . . Parts Damaged . | . . . . . . Bothacking | -11 -10 -10 -9 -9 -9 ------------ Run | Yrd Mat Min Mat Min Exi Used RIF Installer . | . . . . . . Robots Hacked . | . . . . . . Non-combat . | . . . . . . Combat . | . . . . . . Robot Hacks Applied . | . . . . . . Relay Couplers Released . | . . . . . . Fabnet Peak Effective % . | . . . . . . Robots Rewired . | . . . . . . Allies Hacked . | . . . . . . Hacks Repelled . | . . . . . . Allies | -11 -10 -10 -9 -9 -9 -------- Run | Yrd Mat Min Mat Min Exi Total Allies . | . . . . . . Largest Group . | . . . . . . Highest-Rated Group . | . . . . . . Highest-Rated Ally . | . . . . . . Total Orders . | . . . . . . Ally Attacks . | . . . . . . Total Damage . | . . . . . . Kills . | . . . . . . Allies Corrupted . | . . . . . . Allies Melted . | . . . . . . Intel | -11 -10 -10 -9 -9 -9 ------- Run | Yrd Mat Min Mat Min Exi Robot Analysis Total . | . . . . . . Derelict Logs Recovered 4 | . . 2 . 2 . Drone Launches . | . . . . . . Drone Recoveries . | . . . . . . Exploration | -11 -10 -10 -9 -9 -9 ------------- Run | Yrd Mat Min Mat Min Exi Turns Passed 3826 | 82 1080 601 1225 477 361 Spaces Moved 2000 | 50 551 355 580 282 182 Core 7 | 7 . . . . . Treads 1807 | . 408 355 580 282 182 Legs 186 | 43 143 . . . . Wheels . | . . . . . . Hover . | . . . . . . Flight . | . . . . . . Fastest Speed 50 | 50 120 160 160 160 160 Average Speed 156 | 139 149 160 160 160 160 Slowest Speed 240 | 190 160 160 240 160 240 Overloaded Moves . | . . . . . . Propulsion Burnouts . | . . . . . . Robots Hopped . | . . . . . . Cave-ins Triggered . | . . . . . . Exploration Rate (%) 54 | 4 75 89 47 71 40 Regions Visited 5 Branch Regions 3 Pre-discovered Areas 2 | . . 1 . 1 . Known Exits Taken 2 | . 1 . 1 . . Unknown Exits Taken 3 | 1 . 1 . 1 . Scrap Searched 3 | . . 2 . 1 . Spaces Dug . | . . . . . . Terrain Destroyed 14 | . . . . . 14 Melee . | . . . . . . Projectile . | . . . . . . AOE 14 | . . . . . 14 Terrain Rammed . | . . . . . . Walls Destroyed . | . . . . . . Machines Disabled . | . . . . . . Actions | -11 -10 -10 -9 -9 -9 --------- Run | Yrd Mat Min Mat Min Exi Total 2386 | 59 683 371 771 292 210 Wait 63 | . 25 . 38 . . Move 1995 | 49 550 354 579 281 182 Hop . | . . . . . . Pick Up 48 | 4 11 4 29 . . Fast Attach 26 | 5 10 . 11 . . Attach 9 | 1 1 . 5 . 2 Detach 8 | . 7 . 1 . . Swap 26 | . 4 . 17 2 3 Drop 44 | . 9 3 31 1 . Fire 153 | . 66 10 60 8 9 Melee 14 | . . . . . 14 Ram . | . . . . . . Kick . | . . . . . . Crush . | . . . . . . Escape Stasis . | . . . . . . Rewire . | . . . . . . Trap . | . . . . . . Miscellaneous . | . . . . . . Route ------- -11/Scrapyard -10/Materials (discovered 3 exits: *Mat x2 / *Min) -10/Mines -9/Materials (discovered 2 exits: *Mat / *Min) -9/Mines (discovered 3 exits: *Mat x2 / *Exi) -9/Exiles History --------- Turn | Location | Event 17 | -11/Scrapyard | Discovered new exit (range 15) 83 | -11/Scrapyard | Entered Materials 150 | -10/Materials | Identified exit to Mines 305 | -10/Materials | Build established: Mutant 475 | -10/Materials | Discovered new exit (range 14) 882 | -10/Materials | Discovered new exit (range 9) 1163 | -10/Materials | Entered Mines 1166 | -10/Mines | Core integrity fell below 50% 1480 | -10/Mines | Learned Materials stockpile data 1752 | -10/Mines | Discovered new exit (range 7) 1764 | -10/Mines | Entered Materials 1764 | -9/Materials | Evolved 2 slots: Propulsion x1, Utility x1 2135 | -9/Materials | Discovered new exit (range 15) 2180 | -9/Materials | Identified exit to Mines 2225 | -9/Materials | Build established: Scavenger-Mutant 2581 | -9/Materials | Discovered new exit (range 3) 2989 | -9/Materials | Entered Mines 2996 | -9/Mines | Met a Derelict bent on vengeance 3008 | -9/Mines | Assembled infested the area 3013 | -9/Mines | Assisted by a Guerilla fighting off Assembled 3023 | -9/Mines | Identified exit to Materials 3341 | -9/Mines | Discovered exit to Materials (range 10) 3413 | -9/Mines | Deemed a non-threat by the Exiles lab entrance 3413 | -9/Mines | Discovered new exit (range 5) 3466 | -9/Mines | Entered Exiles 3503 | -9/Exiles | Met 8R-AWN 3532 | -9/Exiles | Met EX-HEX 3577 | -9/Exiles | Met EX-BIN 3729 | -9/Exiles | Attacked by the Exiles 3770 | -9/Exiles | Destroyed 7 combat bots 3788 | -9/Exiles | Core integrity fell below 50% 3812 | -9/Exiles | Core integrity fell below 20% 3827 | -9/Exiles | Destroyed by 8R-AWN with 8R-AWN's Boregun Last Messages --------------- 03804_ Critical hit (Destroy). 03804_ Lgt. Treads destroyed. 03806_ Penetrated by HV Slug. 03808_ 8R-AWN suffers critical hit (Smash). 03808_ Destroyed Prototype Leg. 03808_ 8R-AWN system corrupted by crushing effect. 03809_ System corrupted: Matter fused (-8). 03809_ Penetrated by HV Slug. 03810_ 8R-AWN suffers critical hit (Smash). 03811_ Penetrated by HV Slug. 03811_ Critical hit (Destroy). 03811_ Spread Laser destroyed. 03811_ Penetrated by HV Slug. 03813_ HV Slug penetrates Machine. 03813_ Machine disabled. 03813_ HV Slug penetrates Wall. 03813_ Penetrated by HV Slug. 03813_ Destroyed Adv. Weapon Cycler. 03813_ 8R-AWN system corrupted by crushing effect. 03815_ Penetrated by HV Slug. Map ----- +----------------------------------------------------+ | ????#""X" #??????????????????????????????? | | ????#" #??????????????????????????????? | | ????#" ## #??????????????????????????????? | | ????#""""""## #??????????????????????????????? | | ????##"###### #??""""""??????????????????????? | | ???? "?????# #??""""""??????????????????????? | | ???"""??????# #??"""""""?????????????????????? | | ???"""?????## ###"" """"?????????????????????? | | ???????????#" """"?????????????????????? | | ???????????#" """#????????????????????? | | ???????????#" """#????????????????????? | | ???????????#" """#????????????????????? | | ???????????#" """#????????????????????? | | ???????????#" """#????????????????????? | | ??????????### """""???????????????????? | | ??????????? """#????????????????????? | | ???????????#" "X" """""???????????????????? | | ????????????# "" #????????????????????? | | ????????????#" """"""""#????????????????????? | | ???????????##" #########????????????????????? | | ??????????## ##???????????????????????????? | | ??????#####" #???????????????????????????? | | ?????#""""""" #???????????????????????????? | | ????"""" " "" ##??###########??????????????? | | ???? """ " ####"""""""""##?????????????? | | ?? " @g""" """"##????????????? | | ?? "" " #????????????? | | " """#????????????? | | "a"#???????????## | | ? " "##?????????##" | | ""###???????#" | | """""" """#??????##" | | #####;"" "#????### | | ""#????######""" ##???# | | ? """#??????????##""" ##?## | | ? ""??????????????#"""" ### | | ???????????????????#"" # | | ????????????????????""" ## | | ????????????????????? ""#? | | ???????????????????? #"""##? | | ???????????????????? ######?? | | ????????????????????? ##??????? | | ?????????????????????? " ##???????? | | ??????????????????????? """ ""#????????? | | ????????????????????????" ""#" "##????????? | | ?????????????????????????????##"""""""##?????????? | | ??????????????????????????????#########??????????? | | ?????????????????????????????????????????????????? | | ?????????????????????????????????????????????????? | | ?????????????????????????????????????????????????? | +----------------------------------------------------+ Best States ------------- Heat Dissipation 50 Energy Generation 12 Energy Capacity 265 Matter Stores 300 Matter Capacity 300 Sight Range 16 Terrain Scan Density 10 Armor Coverage 150 Core Shielding 20 Evasion (%) 55 Recoil Reduction 3 Item Schematics ----------------- None Robot Schematics ------------------ None Fabricated ------------ Nothing Alien Tech Used ----------------- None Achievements -------------- None Challenges ------------ None Game ------ Seed ParticleDeuteriumProtection Manual? 0 Play Time 00:37:28 Cumulative 123.3 hours Start 2024.07.20 @ 23:26:30 End 2024.07.21 @ 00:11:36 Sessions 1 Manual Loads 0 Difficulty Rogue Special Mode None Game No. 38 Rogue 38 Adventurer 0 Explorer 0 Win Type - Total 1 Types 1/0/0/0/0/0/0/0/0 Lore% 45 Gallery% 55 Achievement% 40 Wizard Run 0 Options --------- Layout 0 ASCII 0 Keyboard 1 Movement Numpad Keybinds 0 Fullscreen 1 Font 18/X11Bold Map View 76x50 Zoom Use 0% Tactical HUD 1 Map Filters NONE Filters NONE Steam 1 RUN: d8f5a12a-2de7-4ea7-9fb6-ea69b4f4169a